[Event "Live Chess"]
[Site "Chess.com"]
[Date "2024.06.01"]
[Round "-"]
[White "DoctorMantisTobogganMD"]
[Black "NottheBishopSacrifice"]
[Result "0-1"]
[WhiteElo "2166"]
[BlackElo "2259"]
[TimeControl "300"]
[EndTime "13:19:33 PDT"]
[Termination "NottheBishopSacrifice won by checkmate"]

1. e4 {[%clk 0:04:59.3]} 1... c6 {[%clk 0:04:58]} 2. d4 {[%clk 0:04:57.8]} 2...
d5 {[%clk 0:04:57.1]} 3. exd5 {[%clk 0:04:57.3]} 3... cxd5 {[%clk 0:04:56.2]} 4.
Bd3 {[%clk 0:04:56.7]} 4... Nc6 {[%clk 0:04:54.9]} 5. c3 {[%clk 0:04:56]} 5...
Nf6 {[%clk 0:04:52.8]} 6. Ne2 {[%clk 0:04:52.8]} 6... Bg4 {[%clk 0:04:50.7]} 7.
O-O {[%clk 0:04:51.1]} 7... e6 {[%clk 0:04:49.7]} 8. Qe1 {[%clk 0:04:45.2]} 8...
Bd6 {[%clk 0:04:48.1]} 9. f3 {[%clk 0:04:43.3]} 9... Bh5 {[%clk 0:04:46.7]} 10.
Qh4 {[%clk 0:04:42.5]} 10... O-O {[%clk 0:04:38.4]} 11. Nf4 {[%clk 0:04:17.2]}
11... Bxf4 {[%clk 0:04:30.7]} 12. Bxf4 {[%clk 0:04:17.1]} 12... Bg6 {[%clk
0:04:29.5]} 13. Bxg6 {[%clk 0:04:12.8]} 13... hxg6 {[%clk 0:04:29.4]} 14. Bg5
{[%clk 0:04:07.5]} 14... Qb6 {[%clk 0:04:28]} 15. Qf2 {[%clk 0:03:57.3]} 15...
Rfe8 {[%clk 0:04:23.5]} 16. Na3 {[%clk 0:03:48.9]} 16... Nd7 {[%clk 0:04:19.1]}
17. Rab1 {[%clk 0:03:30.1]} 17... Rac8 {[%clk 0:04:15]} 18. Nc2 {[%clk
0:03:28.3]} 18... Qa6 {[%clk 0:04:13.1]} 19. a3 {[%clk 0:03:25.2]} 19... e5
{[%clk 0:04:11.7]} 20. dxe5 {[%clk 0:03:20.6]} 20... Ndxe5 {[%clk 0:04:11.6]}
21. Nb4 {[%clk 0:03:11.7]} 21... Nxb4 {[%clk 0:04:09.6]} 22. axb4 {[%clk
0:03:11.6]} 22... Nc4 {[%clk 0:04:04.5]} 23. Ra1 {[%clk 0:03:04.2]} 23... Qe6
{[%clk 0:04:00.1]} 24. Rxa7 {[%clk 0:02:52.7]} 24... b5 {[%clk 0:03:59.5]} 25.
h3 {[%clk 0:02:44.6]} 25... Qf5 {[%clk 0:03:52.1]} 26. Bc1 {[%clk 0:02:26.5]}
26... Re6 {[%clk 0:03:47]} 27. Re1 {[%clk 0:02:14]} 27... Rce8 {[%clk
0:03:44.6]} 28. Rxe6 {[%clk 0:02:13]} 28... Rxe6 {[%clk 0:03:44.5]} 29. Ra8+
{[%clk 0:02:08.9]} 29... Kh7 {[%clk 0:03:42.8]} 30. Qh4+ {[%clk 0:01:59.5]}
30... Qh5 {[%clk 0:03:42.1]} 31. Qxh5+ {[%clk 0:01:56.9]} 31... gxh5 {[%clk
0:03:42]} 32. Kf2 {[%clk 0:01:55.4]} 32... Ne5 {[%clk 0:03:35.7]} 33. Ke3 {[%clk
0:01:35.2]} 33... Nc4+ {[%clk 0:03:29.4]} 34. Kd4 {[%clk 0:01:33.4]} 34... Re1
{[%clk 0:03:28.1]} 35. Bf4 {[%clk 0:01:30.6]} 35... Nxb2 {[%clk 0:03:14]} 36.
Kxd5 {[%clk 0:01:27.3]} 36... Nd1 {[%clk 0:03:12.5]} 37. Ra3 {[%clk 0:01:06.7]}
37... Nb2 {[%clk 0:03:07.6]} 38. Be5 {[%clk 0:00:57.8]} 38... Nc4 {[%clk
0:03:03.1]} 39. Ra7 {[%clk 0:00:51.7]} 39... Rxe5+ {[%clk 0:03:00.7]} 40. Kc6
{[%clk 0:00:51.6]} 40... Kg6 {[%clk 0:02:57.9]} 41. g4 {[%clk 0:00:45.9]} 41...
hxg4 {[%clk 0:02:55.9]} 42. hxg4 {[%clk 0:00:45.8]} 42... Re3 {[%clk 0:02:53.6]}
43. Kxb5 {[%clk 0:00:44]} 43... Ne5 {[%clk 0:02:52.5]} 44. f4 {[%clk 0:00:41.8]}
44... Nxg4 {[%clk 0:02:51.4]} 45. c4 {[%clk 0:00:41.1]} 45... Nf6 {[%clk
0:02:49.4]} 46. c5 {[%clk 0:00:40.2]} 46... Rb3 {[%clk 0:02:43.9]} 47. Kc4
{[%clk 0:00:37.2]} 47... Rb1 {[%clk 0:02:42.6]} 48. c6 {[%clk 0:00:34.9]} 48...
Rc1+ {[%clk 0:02:39.6]} 49. Kb5 {[%clk 0:00:33.9]} 49... Nd5 {[%clk 0:02:37.2]}
50. f5+ {[%clk 0:00:29.2]} 50... Kf6 {[%clk 0:02:34]} 51. Rd7 {[%clk 0:00:21.8]}
51... Ne7 {[%clk 0:02:27.1]} 52. c7 {[%clk 0:00:16.9]} 52... g5 {[%clk
0:02:26.1]} 53. fxg6 {[%clk 0:00:15.7]} 53... fxg6 {[%clk 0:02:25.5]} 54. Kb6
{[%clk 0:00:15.1]} 54... g5 {[%clk 0:02:23.7]} 55. b5 {[%clk 0:00:14.4]} 55...
g4 {[%clk 0:02:22.3]} 56. Kb7 {[%clk 0:00:13.9]} 56... g3 {[%clk 0:02:20.7]} 57.
b6 {[%clk 0:00:13.3]} 57... g2 {[%clk 0:02:19.7]} 58. Rxe7 {[%clk 0:00:11.7]}
58... Kxe7 {[%clk 0:02:18.2]} 59. c8=Q {[%clk 0:00:11.6]} 59... Rxc8 {[%clk
0:02:16.8]} 60. Kxc8 {[%clk 0:00:11.5]} 60... g1=Q {[%clk 0:02:15.2]} 61. b7
{[%clk 0:00:11.4]} 61... Qc5+ {[%clk 0:02:13.9]} 62. Kb8 {[%clk 0:00:10.8]}
62... Kd7 {[%clk 0:02:10.9]} 63. Ka8 {[%clk 0:00:10.7]} 63... Qa5+ {[%clk
0:02:08.9]} 64. Kb8 {[%clk 0:00:09.7]} 64... Kc6 {[%clk 0:02:07.1]} 65. Kc8
{[%clk 0:00:08.6]} 65... Qc7# {[%clk 0:02:06.6]} 0-1

[Event "Live Chess"]
[Site "Chess.com"]
[Date "2024.06.01"]
[Round "-"]
[White "GoldsmanB"]
[Black "jimwad"]
[Result "0-1"]
[WhiteElo "1084"]
[BlackElo "1274"]
[TimeControl "300"]
[EndTime "13:19:51 PDT"]
[Termination "jimwad won by checkmate"]

1. d4 {[%clk 0:04:53.8]} 1... d5 {[%clk 0:04:56.6]} 2. Bf4 {[%clk 0:04:52.5]}
2... Bf5 {[%clk 0:04:55]} 3. c3 {[%clk 0:04:50.8]} 3... Nf6 {[%clk 0:04:52.9]}
4. Qb3 {[%clk 0:04:42]} 4... Qc8 {[%clk 0:04:41.2]} 5. e3 {[%clk 0:04:38.8]}
5... e6 {[%clk 0:04:38.9]} 6. Nf3 {[%clk 0:04:35.7]} 6... Nbd7 {[%clk
0:04:35.7]} 7. Be2 {[%clk 0:04:34.5]} 7... c5 {[%clk 0:04:34.2]} 8. Nbd2 {[%clk
0:04:32.9]} 8... c4 {[%clk 0:04:30.4]} 9. Qd1 {[%clk 0:04:31.6]} 9... Be7 {[%clk
0:04:27.2]} 10. O-O {[%clk 0:04:30]} 10... O-O {[%clk 0:04:25.6]} 11. Ne5 {[%clk
0:04:28.8]} 11... Nxe5 {[%clk 0:04:23.9]} 12. Bxe5 {[%clk 0:04:28.7]} 12... Nd7
{[%clk 0:04:19.8]} 13. Bg3 {[%clk 0:04:26.9]} 13... Bg6 {[%clk 0:04:13.3]} 14.
Bf3 {[%clk 0:04:22.3]} 14... Nf6 {[%clk 0:04:06.6]} 15. Rc1 {[%clk 0:04:20.3]}
15... a5 {[%clk 0:03:52.2]} 16. b3 {[%clk 0:04:18.7]} 16... b5 {[%clk
0:03:50.2]} 17. bxc4 {[%clk 0:04:16]} 17... bxc4 {[%clk 0:03:48.1]} 18. Qa4
{[%clk 0:04:11.1]} 18... Qd7 {[%clk 0:03:23.2]} 19. Qxd7 {[%clk 0:04:06.3]}
19... Nxd7 {[%clk 0:03:21.8]} 20. e4 {[%clk 0:04:03.2]} 20... Ba3 {[%clk
0:02:55.8]} 21. Rb1 {[%clk 0:03:57.2]} 21... Nf6 {[%clk 0:02:40.8]} 22. e5
{[%clk 0:03:51.6]} 22... Bxb1 {[%clk 0:02:38.4]} 23. exf6 {[%clk 0:03:44.6]}
23... Bd3 {[%clk 0:02:33.3]} 24. fxg7 {[%clk 0:03:41.3]} 24... Kxg7 {[%clk
0:02:30.9]} 25. Be5+ {[%clk 0:03:39.3]} 25... Kg8 {[%clk 0:02:29.5]} 26. Re1
{[%clk 0:03:36.7]} 26... f6 {[%clk 0:02:23.4]} 27. Bg3 {[%clk 0:03:34]} 27...
Kf7 {[%clk 0:02:19.9]} 28. Bg4 {[%clk 0:03:31.7]} 28... Bf5 {[%clk 0:01:40.4]}
29. Bh5+ {[%clk 0:03:25.6]} 29... Kg7 {[%clk 0:01:37.3]} 30. Bf3 {[%clk
0:03:23.5]} 30... Bb2 {[%clk 0:01:34.7]} 31. Bd6 {[%clk 0:03:15]} 31... Rfe8
{[%clk 0:01:24.6]} 32. h3 {[%clk 0:02:58.7]} 32... Bxc3 {[%clk 0:01:22.2]} 33.
Rd1 {[%clk 0:02:33.4]} 33... Bc2 {[%clk 0:01:12.2]} 34. Rc1 {[%clk 0:02:28.2]}
34... Bxd2 {[%clk 0:01:01.8]} 35. Rxc2 {[%clk 0:02:26.9]} 35... Bb4 {[%clk
0:00:55.1]} 36. Bg3 {[%clk 0:02:23]} 36... a4 {[%clk 0:00:25.9]} 37. Rb2 {[%clk
0:02:17.9]} 37... Be7 {[%clk 0:00:23.4]} 38. Rb7 {[%clk 0:02:14.9]} 38... Kf7
{[%clk 0:00:21.2]} 39. Bd6 {[%clk 0:02:11.6]} 39... Rac8 {[%clk 0:00:17.3]} 40.
Bh5+ {[%clk 0:02:08.2]} 40... Kf8 {[%clk 0:00:15.7]} 41. Bxe8 {[%clk 0:02:07.2]}
41... Rxe8 {[%clk 0:00:14.9]} 42. Bxe7+ {[%clk 0:01:59.4]} 42... Rxe7 {[%clk
0:00:13.9]} 43. Rb8+ {[%clk 0:01:57.3]} 43... Kf7 {[%clk 0:00:12.9]} 44. Ra8
{[%clk 0:01:55.3]} 44... Rc7 {[%clk 0:00:11.7]} 45. Rxa4 {[%clk 0:01:51.8]}
45... c3 {[%clk 0:00:10.8]} 46. Rb4 {[%clk 0:01:46.9]} 46... c2 {[%clk 0:00:10]}
47. Rb2 {[%clk 0:01:35.9]} 47... c1=Q+ {[%clk 0:00:08.7]} 48. Kh2 {[%clk
0:01:34.3]} 48... Qxb2 {[%clk 0:00:07.9]} 49. Kg3 {[%clk 0:01:32.9]} 49... Qxd4
{[%clk 0:00:07]} 50. f3 {[%clk 0:01:31.2]} 50... Rc3 {[%clk 0:00:06]} 51. Kh2
{[%clk 0:01:29.2]} 51... Qf4+ {[%clk 0:00:04.5]} 52. Kg1 {[%clk 0:01:26]} 52...
Qg3 {[%clk 0:00:03.6]} 53. Kf1 {[%clk 0:01:22.8]} 53... Rc2 {[%clk 0:00:02.8]}
54. Kg1 {[%clk 0:01:21.3]} 54... Qxg2# {[%clk 0:00:01.9]} 0-1

[Event "Live Chess"]
[Site "Chess.com"]
[Date "2024.06.01"]
[Round "-"]
[White "Pablo_dmp"]
[Black "Zhevzh1k7"]
[Result "1-0"]
[WhiteElo "2013"]
[BlackElo "1103"]
[TimeControl "300"]
[EndTime "13:19:57 PDT"]
[Termination "Pablo_dmp won by resignation"]

1. e4 {[%clk 0:04:58.8]} 1... c6 {[%clk 0:04:58.8]} 2. d4 {[%clk 0:04:57.8]}
2... d5 {[%clk 0:04:57.1]} 3. e5 {[%clk 0:04:57.7]} 3... c5 {[%clk 0:04:55.9]}
4. dxc5 {[%clk 0:04:56.6]} 4... e6 {[%clk 0:04:54.3]} 5. Be3 {[%clk 0:04:50.8]}
5... Qa5+ {[%clk 0:04:50.5]} 6. c3 {[%clk 0:04:49]} 6... Bxc5 {[%clk 0:04:45.1]}
7. b4 {[%clk 0:04:47.8]} 7... Qc7 {[%clk 0:04:39.1]} 8. Bxc5 {[%clk 0:04:46.2]}
8... b6 {[%clk 0:04:37.8]} 9. Bd4 {[%clk 0:04:44.9]} 9... Ne7 {[%clk 0:04:34.3]}
10. Bd3 {[%clk 0:04:41.8]} 10... Nbc6 {[%clk 0:04:28.9]} 11. Nf3 {[%clk
0:04:33.9]} 11... Nf5 {[%clk 0:04:25.5]} 12. Bxf5 {[%clk 0:04:32.4]} 12... exf5
{[%clk 0:04:23.6]} 13. O-O {[%clk 0:04:31]} 13... Be6 {[%clk 0:04:20]} 14. a4
{[%clk 0:04:27]} 14... O-O {[%clk 0:04:11]} 15. Nbd2 {[%clk 0:04:19.6]} 15...
Nxd4 {[%clk 0:04:06.5]} 16. cxd4 {[%clk 0:04:19.5]} 16... Rac8 {[%clk
0:04:03.5]} 17. Rc1 {[%clk 0:04:17.3]} 17... Qb7 {[%clk 0:04:02.1]} 18. Qb3
{[%clk 0:04:12.3]} 18... a6 {[%clk 0:03:55.9]} 19. Qe3 {[%clk 0:04:09.6]} 19...
Rxc1 {[%clk 0:03:50.2]} 20. Rxc1 {[%clk 0:04:08.3]} 20... Rc8 {[%clk 0:03:50.1]}
21. Rxc8+ {[%clk 0:04:06.8]} 21... Qxc8 {[%clk 0:03:48.6]} 22. h4 {[%clk
0:04:05.7]} 22... Qc1+ {[%clk 0:03:46.6]} 23. Kh2 {[%clk 0:04:04.1]} 23... Qb2
{[%clk 0:03:42.9]} 24. Qb3 {[%clk 0:04:01.2]} 24... Qc1 {[%clk 0:03:38.1]} 25.
a5 {[%clk 0:03:58.2]} 25... bxa5 {[%clk 0:03:32.5]} 26. bxa5 {[%clk 0:03:57.1]}
26... h6 {[%clk 0:03:28.8]} 27. Qb6 {[%clk 0:03:50.1]} 27... g5 {[%clk
0:03:17.2]} 28. hxg5 {[%clk 0:03:48.9]} 28... hxg5 {[%clk 0:03:16.4]} 29. Qd8+
{[%clk 0:03:46]} 29... Kg7 {[%clk 0:03:14]} 30. Qxg5+ {[%clk 0:03:45.9]} 30...
Kf8 {[%clk 0:03:11.4]} 31. Qd8+ {[%clk 0:03:43.4]} 31... Kg7 {[%clk 0:03:09.8]}
32. Qb6 {[%clk 0:03:40.9]} 32... f4 {[%clk 0:02:54.6]} 33. Qxa6 {[%clk 0:03:39]}
33... Bg4 {[%clk 0:02:51.5]} 34. Qf6+ {[%clk 0:03:37.1]} 34... Kf8 {[%clk
0:02:48.8]} 35. Qxf4 {[%clk 0:03:35.8]} 35... Bxf3 {[%clk 0:02:45.5]} 36. gxf3
{[%clk 0:03:32.9]} 36... Qa3 {[%clk 0:02:39.2]} 37. Qh6+ {[%clk 0:03:30.6]}
37... Ke7 {[%clk 0:02:37.4]} 38. Qd6+ {[%clk 0:03:29.8]} 38... Ke8 {[%clk
0:02:35.1]} 39. Qxa3 {[%clk 0:03:28.6]} 1-0

[Event "Live Chess"]
[Site "Chess.com"]
[Date "2024.06.01"]
[Round "-"]
[White "GerardATHart"]
[Black "RichardABates"]
[Result "0-1"]
[WhiteElo "1404"]
[BlackElo "2238"]
[TimeControl "300"]
[EndTime "13:20:03 PDT"]
[Termination "RichardABates won by resignation"]

1. e4 {[%clk 0:04:53.4]} 1... c5 {[%clk 0:04:58.3]} 2. Nc3 {[%clk 0:04:49.2]}
2... Nc6 {[%clk 0:04:56.5]} 3. Bb5 {[%clk 0:04:47.3]} 3... Nd4 {[%clk
0:04:54.7]} 4. Bc4 {[%clk 0:04:45.2]} 4... e6 {[%clk 0:04:51.3]} 5. a4 {[%clk
0:04:36.9]} 5... a6 {[%clk 0:04:48.9]} 6. Nf3 {[%clk 0:04:32.5]} 6... Qc7 {[%clk
0:04:47.4]} 7. d3 {[%clk 0:04:15.3]} 7... Nf6 {[%clk 0:04:44.7]} 8. Be3 {[%clk
0:04:02.4]} 8... Nc6 {[%clk 0:04:33.6]} 9. O-O {[%clk 0:03:54.9]} 9... Be7
{[%clk 0:04:32.1]} 10. Qd2 {[%clk 0:03:33.1]} 10... O-O {[%clk 0:04:30.2]} 11.
Bf4 {[%clk 0:03:01.8]} 11... d6 {[%clk 0:04:24.1]} 12. Rae1 {[%clk 0:02:48.6]}
12... Ne5 {[%clk 0:04:20.1]} 13. Nxe5 {[%clk 0:02:43.4]} 13... dxe5 {[%clk
0:04:18.8]} 14. Be3 {[%clk 0:02:42]} 14... Ng4 {[%clk 0:04:09.3]} 15. h3 {[%clk
0:02:37]} 15... Nxe3 {[%clk 0:04:07.9]} 16. Rxe3 {[%clk 0:02:35.9]} 16... b6
{[%clk 0:04:06.4]} 17. Rg3 {[%clk 0:02:33.2]} 17... Bd7 {[%clk 0:04:00.2]} 18.
Qh6 {[%clk 0:02:31.3]} 18... g6 {[%clk 0:03:56.7]} 19. h4 {[%clk 0:02:26.5]}
19... Kh8 {[%clk 0:03:21.7]} 20. h5 {[%clk 0:02:24.7]} 20... Rg8 {[%clk
0:03:20.1]} 21. Rh3 {[%clk 0:02:23.1]} 21... g5 {[%clk 0:03:12.2]} 22. Re1
{[%clk 0:02:19.4]} 22... Qd8 {[%clk 0:03:09.8]} 23. Ree3 {[%clk 0:02:16.1]}
23... Bf8 {[%clk 0:03:08]} 24. Qxh7+ {[%clk 0:01:52.2]} 24... Kxh7 {[%clk
0:03:05.9]} 25. Reg3 {[%clk 0:01:48.8]} 25... Bh6 {[%clk 0:03:03.1]} 26. Nd1
{[%clk 0:01:41.3]} 26... g4 {[%clk 0:03:00.2]} 27. Rh4 {[%clk 0:01:39.2]} 27...
Qxh4 {[%clk 0:02:58.3]} 0-1

[Event "Live Chess"]
[Site "Chess.com"]
[Date "2024.06.01"]
[Round "-"]
[White "Eva3337"]
[Black "GwaryTek"]
[Result "1-0"]
[WhiteElo "1169"]
[BlackElo "1921"]
[TimeControl "300"]
[EndTime "13:20:16 PDT"]
[Termination "Eva3337 won on time"]

1. e4 {[%clk 0:04:57.2]} 1... Nf6 {[%clk 0:04:58.5]} 2. Bd3 {[%clk 0:04:51.8]}
2... d5 {[%clk 0:04:56.9]} 3. e5 {[%clk 0:04:50.1]} 3... Nfd7 {[%clk 0:04:48]}
4. e6 {[%clk 0:04:40.5]} 4... Nf6 {[%clk 0:04:46.5]} 5. exf7+ {[%clk 0:04:36.1]}
5... Kxf7 {[%clk 0:04:46.4]} 6. Nf3 {[%clk 0:04:27.8]} 6... Nc6 {[%clk
0:04:44.7]} 7. O-O {[%clk 0:04:25.2]} 7... h6 {[%clk 0:04:43]} 8. Re1 {[%clk
0:04:19]} 8... Bg4 {[%clk 0:04:38.8]} 9. h3 {[%clk 0:04:17]} 9... Bxf3 {[%clk
0:04:29]} 10. Qxf3 {[%clk 0:04:14.9]} 10... e5 {[%clk 0:04:23.6]} 11. Bb5 {[%clk
0:03:42.1]} 11... e4 {[%clk 0:03:38]} 12. Qe3 {[%clk 0:02:57.3]} 12... Bd6
{[%clk 0:03:19.6]} 13. d3 {[%clk 0:02:29.4]} 13... Re8 {[%clk 0:02:18.5]} 14.
Bxc6 {[%clk 0:02:14.3]} 14... bxc6 {[%clk 0:02:18.4]} 15. dxe4 {[%clk
0:01:31.1]} 15... Rxe4 {[%clk 0:02:18.3]} 16. Qd2 {[%clk 0:01:28.2]} 16... Qe7
{[%clk 0:01:19.3]} 17. Rxe4 {[%clk 0:01:19.5]} 17... Nxe4 {[%clk 0:01:19.2]} 18.
Qd1 {[%clk 0:01:06.4]} 18... Qe5 {[%clk 0:00:32.8]} 19. f4 {[%clk 0:00:56.7]}
19... Bc5+ {[%clk 0:00:27.1]} 20. Kh2 {[%clk 0:00:42]} 20... Qd6 {[%clk
0:00:10.8]} 21. Nd2 {[%clk 0:00:38.3]} 21... Re8 {[%clk 0:00:06.7]} 22. Nf3
{[%clk 0:00:32]} 22... Kg8 {[%clk 0:00:05]} 23. Bd2 {[%clk 0:00:29.7]} 23... Nf6
{[%clk 0:00:02.3]} 24. Bc3 {[%clk 0:00:27.8]} 24... d4 {[%clk 0:00:01.2]} 25.
Ba5 {[%clk 0:00:22.7]} 25... Qxf4+ {[%clk 0:00:00.4]} 26. Kh1 {[%clk 0:00:18.7]}
1-0

[Event "Live Chess"]
[Site "Chess.com"]
[Date "2024.06.01"]
[Round "-"]
[White "gobbles19"]
[Black "Tyslcab"]
[Result "1-0"]
[WhiteElo "2214"]
[BlackElo "1415"]
[TimeControl "300"]
[EndTime "13:20:48 PDT"]
[Termination "gobbles19 won on time"]

1. e4 {[%clk 0:04:57.7]} 1... d5 {[%clk 0:04:58.2]} 2. exd5 {[%clk 0:04:56.1]}
2... Nf6 {[%clk 0:04:56.1]} 3. Bb5+ {[%clk 0:04:54.4]} 3... Nbd7 {[%clk
0:04:47]} 4. d4 {[%clk 0:04:51.4]} 4... a6 {[%clk 0:04:42.6]} 5. Be2 {[%clk
0:04:48.7]} 5... Nb6 {[%clk 0:04:38.8]} 6. c4 {[%clk 0:04:46.1]} 6... e6 {[%clk
0:04:35.7]} 7. dxe6 {[%clk 0:04:42.6]} 7... Bxe6 {[%clk 0:04:33.8]} 8. d5 {[%clk
0:04:35]} 8... Bf5 {[%clk 0:04:32]} 9. Nf3 {[%clk 0:04:30.9]} 9... Bb4+ {[%clk
0:04:29.7]} 10. Bd2 {[%clk 0:04:28.5]} 10... Qe7 {[%clk 0:04:25.3]} 11. O-O
{[%clk 0:04:25.6]} 11... O-O-O {[%clk 0:04:20.3]} 12. Bxb4 {[%clk 0:04:14.8]}
12... Qxb4 {[%clk 0:04:17.9]} 13. Nd4 {[%clk 0:04:13.9]} 13... Qxb2 {[%clk
0:04:05.6]} 14. Nc3 {[%clk 0:03:39.8]} 14... Qxc3 {[%clk 0:04:01.7]} 15. Nxf5
{[%clk 0:03:38.4]} 15... Nxc4 {[%clk 0:03:41.4]} 16. Rc1 {[%clk 0:03:33.4]}
16... Qe5 {[%clk 0:03:39.8]} 17. Bxc4 {[%clk 0:03:13.7]} 17... Qxf5 {[%clk
0:03:37.1]} 18. Qb3 {[%clk 0:03:08.7]} 18... Rd6 {[%clk 0:03:28.1]} 19. Rfe1
{[%clk 0:02:51.4]} 19... Re8 {[%clk 0:03:20.1]} 20. Rxe8+ {[%clk 0:02:45]} 20...
Nxe8 {[%clk 0:03:18.1]} 21. Re1 {[%clk 0:02:41.6]} 21... Qd7 {[%clk 0:03:14.9]}
22. h3 {[%clk 0:02:36.9]} 22... Nf6 {[%clk 0:03:08.6]} 23. Rd1 {[%clk
0:02:28.5]} 23... Ne4 {[%clk 0:03:02.3]} 24. Qe3 {[%clk 0:02:22]} 24... f5
{[%clk 0:02:48.2]} 25. Qa7 {[%clk 0:02:18.7]} 25... c6 {[%clk 0:02:35.5]} 26.
Rc1 {[%clk 0:02:08.8]} 26... b5 {[%clk 0:02:09.4]} 27. Qxa6+ {[%clk 0:02:03.9]}
27... Qb7 {[%clk 0:01:58.7]} 28. Bxb5 {[%clk 0:01:36.5]} 28... Qxa6 {[%clk
0:01:45.6]} 29. Bxa6+ {[%clk 0:01:36.4]} 29... Kc7 {[%clk 0:01:40]} 30. Rxc6+
{[%clk 0:01:33.8]} 30... Rxc6 {[%clk 0:01:38.6]} 31. dxc6 {[%clk 0:01:33.7]}
31... Kxc6 {[%clk 0:01:37.6]} 32. Bd3 {[%clk 0:01:31]} 32... Nd6 {[%clk
0:01:34.9]} 33. f4 {[%clk 0:01:24.8]} 33... g6 {[%clk 0:01:32.1]} 34. Kf2 {[%clk
0:01:23.2]} 34... Kc5 {[%clk 0:01:27.7]} 35. Ke3 {[%clk 0:01:17.6]} 35... Kb4
{[%clk 0:01:22.1]} 36. Bc2 {[%clk 0:01:15.7]} 36... Nb5 {[%clk 0:00:58.4]} 37.
Bb3 {[%clk 0:01:12.8]} 37... Nc3 {[%clk 0:00:50.9]} 38. Bg8 {[%clk 0:01:04.7]}
38... Nd1+ {[%clk 0:00:12.8]} 39. Kd4 {[%clk 0:01:00.4]} 39... Nf2 {[%clk
0:00:10.4]} 40. Bxh7 {[%clk 0:00:57]} 40... Ka3 {[%clk 0:00:02.5]} 41. Bxg6
{[%clk 0:00:54.7]} 41... Kxa2 {[%clk 0:00:00.6]} 42. Bxf5 {[%clk 0:00:53.7]} 1-0

[Event "Live Chess"]
[Site "Chess.com"]
[Date "2024.06.01"]
[Round "-"]
[White "nffc11"]
[Black "sebmoran1"]
[Result "1-0"]
[WhiteElo "1996"]
[BlackElo "1478"]
[TimeControl "300"]
[EndTime "13:20:50 PDT"]
[Termination "nffc11 won by resignation"]

1. c4 {[%clk 0:04:54.4]} 1... e6 {[%clk 0:04:58.5]} 2. g3 {[%clk 0:04:53.3]}
2... d5 {[%clk 0:04:57]} 3. cxd5 {[%clk 0:04:51.9]} 3... exd5 {[%clk 0:04:55.6]}
4. Bg2 {[%clk 0:04:51.3]} 4... Nf6 {[%clk 0:04:54.2]} 5. Nf3 {[%clk 0:04:50.9]}
5... Bc5 {[%clk 0:04:52.6]} 6. O-O {[%clk 0:04:50.8]} 6... O-O {[%clk
0:04:51.4]} 7. d4 {[%clk 0:04:50]} 7... Bb6 {[%clk 0:04:49.3]} 8. Nc3 {[%clk
0:04:48.7]} 8... c6 {[%clk 0:04:48.4]} 9. Ne5 {[%clk 0:04:42.6]} 9... Nbd7
{[%clk 0:04:46.1]} 10. Nxd7 {[%clk 0:04:42]} 10... Bxd7 {[%clk 0:04:44.8]} 11.
Bf4 {[%clk 0:04:41.1]} 11... Re8 {[%clk 0:04:40]} 12. Rc1 {[%clk 0:04:38.3]}
12... Bc7 {[%clk 0:04:38]} 13. Bxc7 {[%clk 0:04:28.4]} 13... Qxc7 {[%clk
0:04:37.9]} 14. Nxd5 {[%clk 0:04:22.4]} 14... Nxd5 {[%clk 0:04:33.1]} 15. Bxd5
{[%clk 0:04:21.5]} 15... Be6 {[%clk 0:04:29.7]} 16. Bxe6 {[%clk 0:04:18.9]}
16... Rxe6 {[%clk 0:04:29.6]} 17. e3 {[%clk 0:04:14.5]} 17... Qb6 {[%clk
0:04:27.2]} 18. Qc2 {[%clk 0:04:09.9]} 18... Rae8 {[%clk 0:04:23.7]} 19. b3
{[%clk 0:04:08.7]} 19... Qc7 {[%clk 0:04:21.7]} 20. Qc5 {[%clk 0:04:05.5]} 20...
a6 {[%clk 0:04:17.2]} 21. d5 {[%clk 0:04:03.1]} 21... Rh6 {[%clk 0:04:14.4]} 22.
Rfd1 {[%clk 0:03:52.7]} 22... Qd7 {[%clk 0:04:08.8]} 23. dxc6 {[%clk 0:03:36.6]}
23... Qh3 {[%clk 0:04:05.3]} 24. Qd5 {[%clk 0:03:14.5]} 24... bxc6 {[%clk
0:03:58.6]} 25. Rxc6 {[%clk 0:03:07.4]} 25... Qxh2+ {[%clk 0:03:56.4]} 26. Kf1
{[%clk 0:03:06.8]} 26... Qh3+ {[%clk 0:03:37.7]} 27. Ke2 {[%clk 0:02:56.7]}
27... Qg4+ {[%clk 0:03:36.4]} 28. Kd2 {[%clk 0:02:47.2]} 28... Qb4+ {[%clk
0:03:32.5]} 29. Kc2 {[%clk 0:02:33.3]} 29... Rh2 {[%clk 0:02:54.5]} 30. Rd2
{[%clk 0:02:08.2]} 30... Qa3 {[%clk 0:02:49.6]} 31. Kb1 {[%clk 0:01:58.2]} 31...
h6 {[%clk 0:01:55.5]} 32. Rc7 {[%clk 0:01:44]} 32... Rf8 {[%clk 0:01:36.9]} 33.
Rd7 {[%clk 0:01:24.2]} 33... Qb4 {[%clk 0:01:26.6]} 34. Rd8 {[%clk 0:01:15.6]}
34... Rxd8 {[%clk 0:01:16.4]} 35. Qxd8+ {[%clk 0:01:14.4]} 35... Kh7 {[%clk
0:01:14.9]} 36. Qd3+ {[%clk 0:01:13.2]} 36... g6 {[%clk 0:01:10.4]} 37. Qd5
{[%clk 0:01:01.6]} 37... a5 {[%clk 0:01:07.2]} 38. Qxf7+ {[%clk 0:00:59.2]} 1-0